[Event "Titled Tuesday Blitz July 11 Late 2023"]
[White "Nefedov, Sergey"]
[Black "BrandonJiang123456"]
[WhiteFideId "24113417"]
[WhiteElo "2649"]
[BlackElo "2253"]
[Result "1-0"]
[Round "8"]
[TimeControl "180+2"]
[Date "2023.07.11"]
[WhiteClock "0:00:21"]
[BlackClock "0:00:00"]
[Board "69"]

1. d4 {[%clk 0:02:58]}  f5 {[%clk 0:02:58]} 2. g4 {[%clk 0:02:58]}  fxg4 {[%clk 0:02:55]} 3. h3 {[%clk 0:02:58]}  g3 {[%clk 0:02:55]} 4. fxg3 {[%clk 0:02:58]}  d5 {[%clk 0:02:54]} 5. Bg2 {[%clk 0:02:59]}  Nf6 {[%clk 0:02:54]} 6. Nc3 {[%clk 0:02:58]}  Bf5 {[%clk 0:02:48]} 7. Bg5 {[%clk 0:02:52]}  e6 {[%clk 0:02:46]} 8. e4 {[%clk 0:02:47]}  dxe4 {[%clk 0:02:45]} 9. Nxe4 {[%clk 0:02:48]}  Be7 {[%clk 0:02:32]} 10. Nxf6+ {[%clk 0:02:48]}  Bxf6 {[%clk 0:02:32]} 11. Bxf6 {[%clk 0:02:48]}  Qxf6 {[%clk 0:02:33]} 12. Bxb7 {[%clk 0:02:48]}  O-O {[%clk 0:02:31]} 13. Nf3 {[%clk 0:02:30]}  Qg6 {[%clk 0:02:22]} 14. Rg1 {[%clk 0:02:05]}  Be4 {[%clk 0:02:21]} 15. Bxa8 {[%clk 0:02:00]}  Rxf3 {[%clk 0:02:13]} 16. Qxf3 {[%clk 0:01:56]}  Bxf3 {[%clk 0:02:12]} 17. Bxf3 {[%clk 0:01:56]}  Nd7 {[%clk 0:02:10]} 18. O-O-O {[%clk 0:01:54]}  Nb6 {[%clk 0:02:06]} 19. Kb1 {[%clk 0:01:45]}  Nc4 {[%clk 0:02:05]} 20. Rd3 {[%clk 0:01:39]}  Qg5 {[%clk 0:02:04]} 21. b3 {[%clk 0:01:31]}  Nd6 {[%clk 0:01:36]} 22. Bg4 {[%clk 0:01:23]}  Nf5 {[%clk 0:01:15]} 23. Re1 {[%clk 0:01:20]}  Qf6 {[%clk 0:01:10]} 24. d5 {[%clk 0:00:53]}  exd5 {[%clk 0:01:06]} 25. Rxd5 {[%clk 0:00:52]}  Nd6 {[%clk 0:00:59]} 26. Rd3 {[%clk 0:00:33]}  h6 {[%clk 0:00:56]} 27. a4 {[%clk 0:00:28]}  Kh7 {[%clk 0:00:50]} 28. Rdd1 {[%clk 0:00:23]}  Qf2 {[%clk 0:00:46]} 29. Be2 {[%clk 0:00:22]}  Qxg3 {[%clk 0:00:38]} 30. Bd3+ {[%clk 0:00:22]}  Kg8 {[%clk 0:00:39]} 31. Re7 {[%clk 0:00:22]}  Qf3 {[%clk 0:00:23]} 32. Rde1 {[%clk 0:00:21]}  Qc6 {[%clk 0:00:10]} 33. Rg1 {[%clk 0:00:21]}  g5 {[%clk 0:00:09]} 34. h4 {[%clk 0:00:21]}  Kf8 {[%clk 0:00:09]} 35. Rh7 {[%clk 0:00:20]}  Qf3 {[%clk 0:00:05]} 36. Rf1 {[%clk 0:00:19]}  Qxf1+ {[%clk 0:00:02]} 37. Bxf1 {[%clk 0:00:20]}  Kg8 {[%clk 0:00:00]} 38. Rxh6 {[%clk 0:00:21]} 1-0


[Site "https://www.chess.com"]

[Event "Titled Tuesday Blitz July 11 Late 2023"]
[White "Martin Barcelo, Carles"]
[Black "Bruedigam, Martin"]
[WhiteFideId "24561444"]
[BlackFideId "24608033"]
[WhiteElo "2447"]
[BlackElo "2549"]
[Result "1-0"]
[Round "8"]
[TimeControl "180+2"]
[Date "2023.07.11"]
[WhiteClock "0:00:09"]
[BlackClock "0:00:00"]
[Board "73"]

1. e4 {[%clk 0:02:56]}  g6 {[%clk 0:02:58]} 2. h4 {[%clk 0:02:50]}  Nc6 {[%clk 0:02:52]} 3. d4 {[%clk 0:02:49]}  d5 {[%clk 0:02:52]} 4. e5 {[%clk 0:02:46]}  h5 {[%clk 0:02:49]} 5. Nh3 {[%clk 0:02:42]}  Bxh3 {[%clk 0:02:48]} 6. Rxh3 {[%clk 0:02:42]}  e6 {[%clk 0:02:48]} 7. Bg5 {[%clk 0:02:41]}  Be7 {[%clk 0:02:48]} 8. Qd2 {[%clk 0:02:29]}  Bxg5 {[%clk 0:02:47]} 9. hxg5 {[%clk 0:02:30]}  Nge7 {[%clk 0:02:47]} 10. c3 {[%clk 0:02:27]}  Qd7 {[%clk 0:02:45]} 11. Bd3 {[%clk 0:02:27]}  O-O-O {[%clk 0:02:44]} 12. Na3 {[%clk 0:02:27]}  Nf5 {[%clk 0:02:44]} 13. Nc2 {[%clk 0:02:23]}  Na5 {[%clk 0:02:43]} 14. Ne3 {[%clk 0:02:02]}  Kb8 {[%clk 0:02:38]} 15. O-O-O {[%clk 0:02:01]}  Rc8 {[%clk 0:02:36]} 16. Kb1 {[%clk 0:01:57]}  c5 {[%clk 0:02:15]} 17. dxc5 {[%clk 0:01:52]}  Nxe3 {[%clk 0:02:14]} 18. Qxe3 {[%clk 0:01:51]}  Rc7 {[%clk 0:02:08]} 19. g4 {[%clk 0:01:47]}  Rhc8 {[%clk 0:02:04]} 20. gxh5 {[%clk 0:01:48]}  gxh5 {[%clk 0:02:05]} 21. Rxh5 {[%clk 0:01:46]}  Rxc5 {[%clk 0:02:04]} 22. Rh7 {[%clk 0:01:47]}  Qa4 {[%clk 0:01:46]} 23. Bc2 {[%clk 0:01:46]}  Qb5 {[%clk 0:01:44]} 24. Bd3 {[%clk 0:01:39]}  Nc4 {[%clk 0:01:01]} 25. Bxc4 {[%clk 0:01:38]}  Rxc4 {[%clk 0:01:01]} 26. Ka1 {[%clk 0:01:09]}  d4 {[%clk 0:00:57]} 27. cxd4 {[%clk 0:00:57]}  Rc2 {[%clk 0:00:09]} 28. Rb1 {[%clk 0:00:25]}  Re2 {[%clk 0:00:08]} 29. Qf3 {[%clk 0:00:15]}  Rec2 {[%clk 0:00:00]} 30. Rhh1 {[%clk 0:00:09]} 1-0


[Site "https://www.chess.com"]

[Event "Titled Tuesday Blitz July 11 Late 2023"]
[White "Stachanczyk, Jacek"]
[Black "Aggelis, Nikolaos"]
[WhiteFideId "1116657"]
[BlackFideId "4213220"]
[WhiteElo "2382"]
[BlackElo "2538"]
[Result "1/2-1/2"]
[Round "8"]
[TimeControl "180+2"]
[Date "2023.07.11"]
[WhiteClock "0:00:06"]
[BlackClock "0:00:07"]
[Board "76"]

1. e4 {[%clk 0:00:28]}  c6 {[%clk 0:02:55]} 2. d4 {[%clk 0:00:25]}  d5 {[%clk 0:02:53]} 3. Nc3 {[%clk 0:00:26]}  dxe4 {[%clk 0:02:52]} 4. Nxe4 {[%clk 0:00:27]}  Nf6 {[%clk 0:02:53]} 5. Nxf6+ {[%clk 0:00:27]}  exf6 {[%clk 0:02:54]} 6. c3 {[%clk 0:00:27]}  Bd6 {[%clk 0:02:54]} 7. Bd3 {[%clk 0:00:28]}  Qc7 {[%clk 0:02:55]} 8. Ne2 {[%clk 0:00:28]}  O-O {[%clk 0:02:54]} 9. Ng3 {[%clk 0:00:28]}  Re8+ {[%clk 0:02:51]} 10. Be3 {[%clk 0:00:27]}  f5 {[%clk 0:02:50]} 11. Nxf5 {[%clk 0:00:23]}  Bf4 {[%clk 0:02:44]} 12. O-O {[%clk 0:00:22]}  Bxf5 {[%clk 0:02:42]} 13. Bxf5 {[%clk 0:00:23]}  Bxe3 {[%clk 0:02:40]} 14. fxe3 {[%clk 0:00:24]}  g6 {[%clk 0:02:38]} 15. Bc2 {[%clk 0:00:22]}  Rxe3 {[%clk 0:02:37]} 16. Bb3 {[%clk 0:00:23]}  Re7 {[%clk 0:02:35]} 17. Qf3 {[%clk 0:00:23]}  Na6 {[%clk 0:02:35]} 18. Rae1 {[%clk 0:00:24]}  Rf8 {[%clk 0:02:34]} 19. Qf6 {[%clk 0:00:22]}  Rxe1 {[%clk 0:02:34]} 20. Rxe1 {[%clk 0:00:22]}  c5 {[%clk 0:01:21]} 21. Re7 {[%clk 0:00:22]}  c4 {[%clk 0:01:16]} 22. Rxc7 {[%clk 0:00:20]}  cxb3 {[%clk 0:01:15]} 23. axb3 {[%clk 0:00:19]}  Nxc7 {[%clk 0:01:15]} 24. c4 {[%clk 0:00:20]}  Re8 {[%clk 0:01:12]} 25. h3 {[%clk 0:00:20]}  Ne6 {[%clk 0:01:08]} 26. d5 {[%clk 0:00:20]}  Nc5 {[%clk 0:01:07]} 27. b4 {[%clk 0:00:20]}  Ne4 {[%clk 0:01:03]} 28. Qf3 {[%clk 0:00:20]}  f5 {[%clk 0:01:00]} 29. Qe3 {[%clk 0:00:20]}  a6 {[%clk 0:00:49]} 30. Qd4 {[%clk 0:00:20]}  Re7 {[%clk 0:00:47]} 31. c5 {[%clk 0:00:20]}  Kf7 {[%clk 0:00:44]} 32. Kh2 {[%clk 0:00:21]}  h6 {[%clk 0:00:40]} 33. d6 {[%clk 0:00:22]}  Rd7 {[%clk 0:00:38]} 34. Qd5+ {[%clk 0:00:22]}  Kg7 {[%clk 0:00:36]} 35. Qc4 {[%clk 0:00:23]}  h5 {[%clk 0:00:34]} 36. b5 {[%clk 0:00:23]}  axb5 {[%clk 0:00:33]} 37. Qxb5 {[%clk 0:00:24]}  Nf6 {[%clk 0:00:31]} 38. b4 {[%clk 0:00:23]}  g5 {[%clk 0:00:30]} 39. Qc4 {[%clk 0:00:23]}  Rd8 {[%clk 0:00:28]} 40. Qe6 {[%clk 0:00:22]}  Rg8 {[%clk 0:00:24]} 41. Qxf5 {[%clk 0:00:22]}  Kf7 {[%clk 0:00:22]} 42. b5 {[%clk 0:00:22]}  g4 {[%clk 0:00:21]} 43. hxg4 {[%clk 0:00:22]}  hxg4 {[%clk 0:00:22]} 44. Kg3 {[%clk 0:00:22]}  Ra8 {[%clk 0:00:18]} 45. c6 {[%clk 0:00:22]}  bxc6 {[%clk 0:00:18]} 46. bxc6 {[%clk 0:00:21]}  Ra3+ {[%clk 0:00:19]} 47. Kf2 {[%clk 0:00:22]}  Ra2+ {[%clk 0:00:19]} 48. Ke1 {[%clk 0:00:22]}  g3 {[%clk 0:00:16]} 49. d7 {[%clk 0:00:20]}  Ra1+ {[%clk 0:00:14]} 50. Kd2 {[%clk 0:00:20]}  Ra2+ {[%clk 0:00:11]} 51. Kc1 {[%clk 0:00:21]}  Ra1+ {[%clk 0:00:09]} 52. Kb2 {[%clk 0:00:21]}  Rd1 {[%clk 0:00:08]} 53. c7 {[%clk 0:00:21]}  Rxd7 {[%clk 0:00:07]} 54. Qxd7+ {[%clk 0:00:20]}  Nxd7 {[%clk 0:00:07]} 55. c8=Q {[%clk 0:00:20]}  Ke7 {[%clk 0:00:07]} 56. Qc3 {[%clk 0:00:19]}  Ke6 {[%clk 0:00:06]} 57. Qxg3 {[%clk 0:00:20]}  Ne5 {[%clk 0:00:07]} 58. Kc3 {[%clk 0:00:19]}  Kf5 {[%clk 0:00:08]} 59. Kd4 {[%clk 0:00:17]}  Ng4 {[%clk 0:00:08]} 60. Qf3+ {[%clk 0:00:16]}  Kg5 {[%clk 0:00:09]} 61. g3 {[%clk 0:00:15]}  Nf6 {[%clk 0:00:09]} 62. Qf4+ {[%clk 0:00:15]}  Kg6 {[%clk 0:00:09]} 63. g4 {[%clk 0:00:14]}  Nh7 {[%clk 0:00:09]} 64. Qf5+ {[%clk 0:00:14]}  Kg7 {[%clk 0:00:09]} 65. Ke5 {[%clk 0:00:13]}  Nf8 {[%clk 0:00:09]} 66. Qf6+ {[%clk 0:00:12]}  Kg8 {[%clk 0:00:09]} 67. Kd6 {[%clk 0:00:11]}  Nh7 {[%clk 0:00:08]} 68. Qg6+ {[%clk 0:00:10]}  Kh8 {[%clk 0:00:09]} 69. g5 {[%clk 0:00:10]}  Nf8 {[%clk 0:00:09]} 70. Qh6+ {[%clk 0:00:10]}  Kg8 {[%clk 0:00:09]} 71. Ke7 {[%clk 0:00:10]}  Nh7 {[%clk 0:00:08]} 72. g6 {[%clk 0:00:10]}  Nf6 {[%clk 0:00:09]} 73. Qh1 {[%clk 0:00:06]}  Kg7 {[%clk 0:00:08]} 74. Qa1 {[%clk 0:00:05]}  Kg8 {[%clk 0:00:07]} 75. Qxf6 {[%clk 0:00:06]} 1/2-1/2


[Site "https://www.chess.com"]

[Event "Titled Tuesday Blitz July 11 Late 2023"]
[White "brm72"]
[Black "Fajdetic, Hrvoje"]
[BlackFideId "14501945"]
[WhiteElo "2531"]
[BlackElo "2349"]
[Result "1-0"]
[Round "8"]
[TimeControl "180+2"]
[Date "2023.07.11"]
[WhiteClock "0:00:48"]
[BlackClock "0:00:00"]
[Board "77"]

1. e4 {[%clk 0:03:00]}  c5 {[%clk 0:02:57]} 2. Nf3 {[%clk 0:02:59]}  a6 {[%clk 0:02:57]} 3. c3 {[%clk 0:02:59]}  d5 {[%clk 0:02:57]} 4. exd5 {[%clk 0:02:59]}  Qxd5 {[%clk 0:02:57]} 5. d4 {[%clk 0:02:57]}  Bg4 {[%clk 0:02:53]} 6. Be2 {[%clk 0:02:57]}  e6 {[%clk 0:02:51]} 7. h3 {[%clk 0:02:57]}  Bh5 {[%clk 0:02:51]} 8. O-O {[%clk 0:02:56]}  Nf6 {[%clk 0:02:50]} 9. Be3 {[%clk 0:02:56]}  Nbd7 {[%clk 0:02:49]} 10. Na3 {[%clk 0:02:48]}  cxd4 {[%clk 0:02:46]} 11. cxd4 {[%clk 0:02:45]}  Bxa3 {[%clk 0:02:42]} 12. bxa3 {[%clk 0:02:46]}  O-O {[%clk 0:02:40]} 13. Rc1 {[%clk 0:02:45]}  Rac8 {[%clk 0:02:34]} 14. Qb3 {[%clk 0:02:44]}  b5 {[%clk 0:02:31]} 15. a4 {[%clk 0:02:40]}  Qxb3 {[%clk 0:02:04]} 16. axb3 {[%clk 0:02:40]}  bxa4 {[%clk 0:01:57]} 17. bxa4 {[%clk 0:02:41]}  Nb6 {[%clk 0:01:47]} 18. a5 {[%clk 0:02:34]}  Nbd5 {[%clk 0:01:46]} 19. g4 {[%clk 0:02:19]}  Bg6 {[%clk 0:01:35]} 20. Ne5 {[%clk 0:02:19]}  Nc3 {[%clk 0:01:27]} 21. Bxa6 {[%clk 0:02:15]}  Ra8 {[%clk 0:01:10]} 22. Bb7 {[%clk 0:02:08]}  Ne2+ {[%clk 0:01:06]} 23. Kh2 {[%clk 0:02:04]}  Rxa5 {[%clk 0:00:58]} 24. Rc4 {[%clk 0:01:15]}  Nd5 {[%clk 0:00:27]} 25. Re1 {[%clk 0:01:04]}  Ra2 {[%clk 0:00:18]} 26. Bxd5 {[%clk 0:00:54]}  exd5 {[%clk 0:00:19]} 27. Rc7 {[%clk 0:00:53]}  Be4 {[%clk 0:00:11]} 28. g5 {[%clk 0:00:49]}  f6 {[%clk 0:00:00]} 29. Nd7 {[%clk 0:00:48]} 1-0


[Site "https://www.chess.com"]

[Event "Titled Tuesday Blitz July 11 Late 2023"]
[White "Al Mukhaini, Shima"]
[Black "Yeritsyan, Hayk"]
[WhiteFideId "22005854"]
[BlackFideId "13307320"]
[WhiteElo "2335"]
[BlackElo "2525"]
[Result "1-0"]
[Round "8"]
[TimeControl "180+2"]
[Date "2023.07.11"]
[WhiteClock "0:01:59"]
[BlackClock "0:01:43"]
[Board "79"]

1. b3 {[%clk 0:03:00]}  d5 {[%clk 0:02:59]} 2. Bb2 {[%clk 0:03:01]}  Nf6 {[%clk 0:02:59]} 3. e3 {[%clk 0:03:01]}  Bf5 {[%clk 0:03:00]} 4. f4 {[%clk 0:03:01]}  e6 {[%clk 0:03:00]} 5. Be2 {[%clk 0:03:01]}  h6 {[%clk 0:03:00]} 6. Bf3 {[%clk 0:03:01]}  Be7 {[%clk 0:03:00]} 7. d3 {[%clk 0:03:01]}  c6 {[%clk 0:03:00]} 8. Nd2 {[%clk 0:02:59]}  O-O {[%clk 0:02:59]} 9. g4 {[%clk 0:02:58]}  Bh7 {[%clk 0:02:59]} 10. h4 {[%clk 0:02:58]}  Qb6 {[%clk 0:02:57]} 11. Qe2 {[%clk 0:02:57]}  Nfd7 {[%clk 0:02:52]} 12. g5 {[%clk 0:02:57]}  hxg5 {[%clk 0:02:47]} 13. hxg5 {[%clk 0:02:57]}  e5 {[%clk 0:02:46]} 14. Qh2 {[%clk 0:02:55]}  Qxe3+ {[%clk 0:02:43]} 15. Ne2 {[%clk 0:02:55]}  f6 {[%clk 0:02:05]} 16. Qxh7+ {[%clk 0:02:54]}  Kf7 {[%clk 0:02:06]} 17. Bh5+ {[%clk 0:02:53]}  Ke6 {[%clk 0:02:06]} 18. Rh3 {[%clk 0:02:25]}  Qc5 {[%clk 0:01:56]} 19. fxe5 {[%clk 0:02:08]}  Na6 {[%clk 0:01:47]} 20. Bg4+ {[%clk 0:02:02]}  f5 {[%clk 0:01:47]} 21. Qg6+ {[%clk 0:02:02]}  Bf6 {[%clk 0:01:44]} 22. Qxf5+ {[%clk 0:01:59]}  Ke7 {[%clk 0:01:43]} 23. Qxd7# {[%clk 0:01:59]} 1-0


[Site "https://www.chess.com"]

[Event "Titled Tuesday Blitz July 11 Late 2023"]
[White "Santos Flores, Alberto"]
[Black "Harish, Neeraj"]
[WhiteFideId "3601234"]
[BlackFideId "30958130"]
[WhiteElo "2524"]
[BlackElo "2311"]
[Result "1-0"]
[Round "8"]
[TimeControl "180+2"]
[Date "2023.07.11"]
[WhiteClock "0:01:14"]
[BlackClock "0:00:09"]
[Board "80"]

1. e4 {[%clk 0:02:59]}  c5 {[%clk 0:02:55]} 2. Nf3 {[%clk 0:02:58]}  Nc6 {[%clk 0:02:52]} 3. Nc3 {[%clk 0:02:58]}  e5 {[%clk 0:02:51]} 4. Bc4 {[%clk 0:02:58]}  g6 {[%clk 0:02:50]} 5. d3 {[%clk 0:02:57]}  h6 {[%clk 0:02:50]} 6. Nd2 {[%clk 0:02:53]}  Bg7 {[%clk 0:02:50]} 7. Nf1 {[%clk 0:02:52]}  Nge7 {[%clk 0:02:50]} 8. h4 {[%clk 0:02:51]}  O-O {[%clk 0:02:48]} 9. h5 {[%clk 0:02:46]}  g5 {[%clk 0:02:47]} 10. g4 {[%clk 0:02:45]}  d6 {[%clk 0:02:42]} 11. Ng3 {[%clk 0:02:45]}  Kh7 {[%clk 0:02:16]} 12. Nd5 {[%clk 0:02:41]}  Nxd5 {[%clk 0:02:14]} 13. Bxd5 {[%clk 0:02:41]}  Nd4 {[%clk 0:02:14]} 14. c3 {[%clk 0:02:40]}  Ne6 {[%clk 0:02:14]} 15. Nf5 {[%clk 0:02:40]}  Nf4 {[%clk 0:02:13]} 16. Bxf4 {[%clk 0:02:38]}  exf4 {[%clk 0:02:11]} 17. Qb3 {[%clk 0:02:24]}  Bxf5 {[%clk 0:02:06]} 18. gxf5 {[%clk 0:02:20]}  Qf6 {[%clk 0:01:54]} 19. f3 {[%clk 0:02:12]}  Rae8 {[%clk 0:01:47]} 20. O-O-O {[%clk 0:02:09]}  b6 {[%clk 0:01:45]} 21. d4 {[%clk 0:02:08]}  cxd4 {[%clk 0:01:44]} 22. cxd4 {[%clk 0:02:09]}  Rc8+ {[%clk 0:01:44]} 23. Kb1 {[%clk 0:02:10]}  Kh8 {[%clk 0:01:31]} 24. Rhe1 {[%clk 0:02:07]}  Rc7 {[%clk 0:01:22]} 25. Qd3 {[%clk 0:02:04]}  Qd8 {[%clk 0:01:11]} 26. e5 {[%clk 0:01:54]}  dxe5 {[%clk 0:01:09]} 27. dxe5 {[%clk 0:01:55]}  f6 {[%clk 0:01:06]} 28. e6 {[%clk 0:01:53]}  Re8 {[%clk 0:01:05]} 29. Bb3 {[%clk 0:01:45]}  Qxd3+ {[%clk 0:01:03]} 30. Rxd3 {[%clk 0:01:46]}  Bf8 {[%clk 0:01:03]} 31. Ba4 {[%clk 0:01:44]}  Ree7 {[%clk 0:00:55]} 32. Red1 {[%clk 0:01:41]}  Kg7 {[%clk 0:00:54]} 33. Bd7 {[%clk 0:01:41]}  Kh7 {[%clk 0:00:41]} 34. Rc1 {[%clk 0:01:40]}  Rxc1+ {[%clk 0:00:38]} 35. Kxc1 {[%clk 0:01:41]}  Rg7 {[%clk 0:00:37]} 36. Rc3 {[%clk 0:01:36]}  a5 {[%clk 0:00:37]} 37. Rc8 {[%clk 0:01:35]}  Bc5 {[%clk 0:00:35]} 38. Be8 {[%clk 0:01:33]}  Re7 {[%clk 0:00:31]} 39. Bg6+ {[%clk 0:01:29]}  Kg7 {[%clk 0:00:31]} 40. Kc2 {[%clk 0:01:29]}  Be3 {[%clk 0:00:28]} 41. Kd3 {[%clk 0:01:25]}  Bf2 {[%clk 0:00:26]} 42. Bf7 {[%clk 0:01:23]}  Bg1 {[%clk 0:00:26]} 43. Rg8+ {[%clk 0:01:21]}  Kh7 {[%clk 0:00:25]} 44. Rg6 {[%clk 0:01:22]}  Bc5 {[%clk 0:00:14]} 45. Rxf6 {[%clk 0:01:19]}  Bd6 {[%clk 0:00:14]} 46. Rg6 {[%clk 0:01:16]}  Be5 {[%clk 0:00:15]} 47. f6 {[%clk 0:01:15]}  Rc7 {[%clk 0:00:13]} 48. e7 {[%clk 0:01:14]}  Rd7+ {[%clk 0:00:09]} 49. Ke2 {[%clk 0:01:14]} 1-0


[Site "https://www.chess.com"]

[Event "Titled Tuesday Blitz July 11 Late 2023"]
[White "Womacka, Mathias"]
[Black "Cooper, Aaron"]
[WhiteFideId "4611390"]
[BlackFideId "2634945"]
[WhiteElo "2510"]
[BlackElo "2262"]
[Result "1-0"]
[Round "8"]
[TimeControl "180+2"]
[Date "2023.07.11"]
[WhiteClock "0:00:32"]
[BlackClock "0:00:06"]
[Board "81"]

1. e4 {[%clk 0:03:00]}  c5 {[%clk 0:02:59]} 2. Nf3 {[%clk 0:03:00]}  d6 {[%clk 0:03:00]} 3. d4 {[%clk 0:03:01]}  cxd4 {[%clk 0:03:01]} 4. Nxd4 {[%clk 0:03:01]}  Nf6 {[%clk 0:03:01]} 5. Nc3 {[%clk 0:03:01]}  g6 {[%clk 0:03:01]} 6. Be3 {[%clk 0:02:59]}  Nc6 {[%clk 0:03:01]} 7. f3 {[%clk 0:02:51]}  h5 {[%clk 0:03:00]} 8. Qd2 {[%clk 0:02:51]}  Nxd4 {[%clk 0:02:59]} 9. Bxd4 {[%clk 0:02:50]}  Bh6 {[%clk 0:02:59]} 10. Be3 {[%clk 0:02:25]}  Bxe3 {[%clk 0:02:58]} 11. Qxe3 {[%clk 0:02:26]}  Be6 {[%clk 0:02:58]} 12. O-O-O {[%clk 0:02:25]}  Qa5 {[%clk 0:02:57]} 13. Bb5+ {[%clk 0:01:54]}  Kf8 {[%clk 0:02:57]} 14. Ba4 {[%clk 0:01:54]}  Rc8 {[%clk 0:02:50]} 15. Bb3 {[%clk 0:01:45]}  Kg7 {[%clk 0:02:48]} 16. Kb1 {[%clk 0:01:44]}  Rc5 {[%clk 0:02:23]} 17. Nd5 {[%clk 0:01:38]}  Nxd5 {[%clk 0:02:13]} 18. exd5 {[%clk 0:01:39]}  Bf5 {[%clk 0:02:13]} 19. Qxe7 {[%clk 0:01:36]}  Rhc8 {[%clk 0:02:11]} 20. Qxd6 {[%clk 0:01:22]}  Rxc2 {[%clk 0:01:15]} 21. Bxc2 {[%clk 0:01:23]}  Rxc2 {[%clk 0:01:15]} 22. Qe5+ {[%clk 0:01:13]}  Kh7 {[%clk 0:01:14]} 23. Ka1 {[%clk 0:01:10]}  Rxg2 {[%clk 0:01:00]} 24. f4 {[%clk 0:00:59]}  Bc2 {[%clk 0:00:40]} 25. Rc1 {[%clk 0:00:49]}  Bb3 {[%clk 0:00:38]} 26. a3 {[%clk 0:00:49]}  Qxd5 {[%clk 0:00:18]} 27. Qf6 {[%clk 0:00:42]}  Bc2 {[%clk 0:00:14]} 28. Rhe1 {[%clk 0:00:36]}  b5 {[%clk 0:00:08]} 29. Re8 {[%clk 0:00:33]}  b4 {[%clk 0:00:06]} 30. Rh8# {[%clk 0:00:32]} 1-0


[Site "https://www.chess.com"]

[Event "Titled Tuesday Blitz July 11 Late 2023"]
[White "Vlassov, Nikolai"]
[Black "Mikhalsky, Vladimir"]
[WhiteFideId "4103360"]
[BlackFideId "14144352"]
[WhiteElo "2567"]
[BlackElo "2403"]
[Result "1-0"]
[Round "8"]
[TimeControl "180+2"]
[Date "2023.07.11"]
[WhiteClock "0:00:07"]
[BlackClock "0:00:00"]
[Board "83"]

1. e4 {[%clk 0:03:00]}  g6 {[%clk 0:02:58]} 2. Nc3 {[%clk 0:03:00]}  Bg7 {[%clk 0:02:57]} 3. h4 {[%clk 0:03:00]}  c5 {[%clk 0:02:56]} 4. h5 {[%clk 0:03:00]}  Nc6 {[%clk 0:02:56]} 5. Bc4 {[%clk 0:02:56]}  Ne5 {[%clk 0:02:49]} 6. Be2 {[%clk 0:02:46]}  e6 {[%clk 0:02:48]} 7. d3 {[%clk 0:02:31]}  d5 {[%clk 0:02:46]} 8. h6 {[%clk 0:02:30]}  Bf6 {[%clk 0:02:33]} 9. f4 {[%clk 0:02:26]}  Nc6 {[%clk 0:02:32]} 10. e5 {[%clk 0:02:24]}  Bh4+ {[%clk 0:02:31]} 11. Kf1 {[%clk 0:02:24]}  Nxh6 {[%clk 0:02:27]} 12. g3 {[%clk 0:02:11]}  Nf5 {[%clk 0:02:22]} 13. gxh4 {[%clk 0:02:05]}  Ng3+ {[%clk 0:02:21]} 14. Kg2 {[%clk 0:02:05]}  Nxh1 {[%clk 0:02:21]} 15. Nf3 {[%clk 0:02:05]}  Nd4 {[%clk 0:02:17]} 16. Nxd4 {[%clk 0:01:49]}  cxd4 {[%clk 0:02:13]} 17. Nb5 {[%clk 0:01:49]}  Nf2 {[%clk 0:02:00]} 18. Kxf2 {[%clk 0:01:48]}  Qxh4+ {[%clk 0:01:59]} 19. Kg2 {[%clk 0:01:48]}  O-O {[%clk 0:01:46]} 20. Bd2 {[%clk 0:01:40]}  f6 {[%clk 0:01:46]} 21. Qh1 {[%clk 0:01:27]}  Qxh1+ {[%clk 0:01:42]} 22. Rxh1 {[%clk 0:01:28]}  Bd7 {[%clk 0:01:27]} 23. Nxd4 {[%clk 0:01:25]}  Rac8 {[%clk 0:01:18]} 24. Bb4 {[%clk 0:01:17]}  Rf7 {[%clk 0:01:17]} 25. Bd6 {[%clk 0:01:07]}  f5 {[%clk 0:00:57]} 26. Bf3 {[%clk 0:01:06]}  Rg7 {[%clk 0:00:56]} 27. Kf2 {[%clk 0:01:02]}  Kf7 {[%clk 0:00:54]} 28. b3 {[%clk 0:00:56]}  b6 {[%clk 0:00:52]} 29. a4 {[%clk 0:00:51]}  a5 {[%clk 0:00:44]} 30. Ke3 {[%clk 0:00:50]}  Rh8 {[%clk 0:00:39]} 31. Rh6 {[%clk 0:00:47]}  Rc8 {[%clk 0:00:34]} 32. c4 {[%clk 0:00:37]}  dxc4 {[%clk 0:00:33]} 33. dxc4 {[%clk 0:00:38]}  Kg8 {[%clk 0:00:32]} 34. Nb5 {[%clk 0:00:25]}  g5 {[%clk 0:00:26]} 35. fxg5 {[%clk 0:00:19]}  Rxg5 {[%clk 0:00:26]} 36. Nc7 {[%clk 0:00:18]}  Rg1 {[%clk 0:00:21]} 37. Nxe6 {[%clk 0:00:16]}  Rb1 {[%clk 0:00:20]} 38. Nd4 {[%clk 0:00:16]}  Re1+ {[%clk 0:00:19]} 39. Kf4 {[%clk 0:00:15]}  Bxa4 {[%clk 0:00:12]} 40. Nxf5 {[%clk 0:00:12]}  Kh8 {[%clk 0:00:06]} 41. bxa4 {[%clk 0:00:10]}  Rxc4+ {[%clk 0:00:05]} 42. Kg5 {[%clk 0:00:10]}  Rg1+ {[%clk 0:00:04]} 43. Kf6 {[%clk 0:00:10]}  Rf1 {[%clk 0:00:04]} 44. Bd5 {[%clk 0:00:10]}  Rcf4 {[%clk 0:00:04]} 45. Rh5 {[%clk 0:00:10]}  Rd4 {[%clk 0:00:03]} 46. Bf7 {[%clk 0:00:09]}  Rxa4 {[%clk 0:00:02]} 47. Rg5 {[%clk 0:00:09]}  h6 {[%clk 0:00:01]} 48. Rg8+ {[%clk 0:00:09]}  Kh7 {[%clk 0:00:01]} 49. Rg7+ {[%clk 0:00:09]}  Kh8 {[%clk 0:00:01]} 50. Bg6 {[%clk 0:00:08]}  Rxf5+ {[%clk 0:00:01]} 51. Bxf5 {[%clk 0:00:07]}  Rf4 {[%clk 0:00:00]} 52. Rh7+ {[%clk 0:00:07]} 1-0


[Site "https://www.chess.com"]

[Event "Titled Tuesday Blitz July 11 Late 2023"]
[White "only_strong_moves"]
[Black "Toktomushev, Teimur"]
[BlackFideId "14176726"]
[WhiteElo "2536"]
[BlackElo "2395"]
[Result "1-0"]
[Round "8"]
[TimeControl "180+2"]
[Date "2023.07.11"]
[WhiteClock "0:01:08"]
[BlackClock "0:00:00"]
[Board "84"]

1. d4 {[%clk 0:03:00]}  d5 {[%clk 0:02:59]} 2. Nc3 {[%clk 0:02:59]}  Nf6 {[%clk 0:02:59]} 3. Bf4 {[%clk 0:02:59]}  a6 {[%clk 0:03:00]} 4. e3 {[%clk 0:02:59]}  c5 {[%clk 0:02:59]} 5. dxc5 {[%clk 0:03:00]}  Nc6 {[%clk 0:03:00]} 6. Nf3 {[%clk 0:03:00]}  Bg4 {[%clk 0:02:58]} 7. Be2 {[%clk 0:02:58]}  e6 {[%clk 0:02:57]} 8. Na4 {[%clk 0:02:57]}  Bxc5 {[%clk 0:02:57]} 9. Nxc5 {[%clk 0:02:58]}  Qa5+ {[%clk 0:02:57]} 10. c3 {[%clk 0:02:56]}  Qxc5 {[%clk 0:02:58]} 11. O-O {[%clk 0:02:36]}  O-O {[%clk 0:02:58]} 12. Ne5 {[%clk 0:02:33]}  Bxe2 {[%clk 0:02:57]} 13. Qxe2 {[%clk 0:02:34]}  Nxe5 {[%clk 0:02:52]} 14. Bxe5 {[%clk 0:02:35]}  Nd7 {[%clk 0:02:52]} 15. Bd4 {[%clk 0:02:33]}  Qe7 {[%clk 0:02:37]} 16. c4 {[%clk 0:02:30]}  e5 {[%clk 0:02:21]} 17. Bc3 {[%clk 0:02:29]}  Nb6 {[%clk 0:02:14]} 18. cxd5 {[%clk 0:02:20]}  Nxd5 {[%clk 0:02:14]} 19. Bd2 {[%clk 0:02:20]}  Rac8 {[%clk 0:02:10]} 20. Rac1 {[%clk 0:02:15]}  e4 {[%clk 0:02:01]} 21. Rc4 {[%clk 0:02:09]}  Rfd8 {[%clk 0:01:15]} 22. Rfc1 {[%clk 0:02:05]}  Rxc4 {[%clk 0:00:50]} 23. Rxc4 {[%clk 0:02:06]}  h6 {[%clk 0:00:42]} 24. h3 {[%clk 0:02:05]}  Qe6 {[%clk 0:00:28]} 25. b3 {[%clk 0:01:47]}  Rc8 {[%clk 0:00:15]} 26. Bc1 {[%clk 0:01:42]}  b5 {[%clk 0:00:09]} 27. Rxc8+ {[%clk 0:01:36]}  Qxc8 {[%clk 0:00:10]} 28. Bb2 {[%clk 0:01:36]}  Nb4 {[%clk 0:00:11]} 29. Bd4 {[%clk 0:01:28]}  Nd3 {[%clk 0:00:06]} 30. f3 {[%clk 0:01:20]}  Nc1 {[%clk 0:00:02]} 31. Qe1 {[%clk 0:01:11]}  Nd3 {[%clk 0:00:02]} 32. Qg3 {[%clk 0:01:10]}  g6 {[%clk 0:00:02]} 33. fxe4 {[%clk 0:01:09]}  Qc1+ {[%clk 0:00:02]} 34. Kh2 {[%clk 0:01:09]}  Qe1 {[%clk 0:00:00]} 35. Qb8+ {[%clk 0:01:08]} 1-0


[Site "https://www.chess.com"]